[Event "Reykjavik Open 2024"]
[Site "Reykjavik"]
[Date "2024.03.18"]
[Round "6.43"]
[White "Scotti, Martin"]
[Black "Salimova, Nurgyul"]
[Result "0-1"]
[ECO "E55"]
[WhiteElo "1885"]
[BlackElo "2426"]
[Annotator "TA"]
[PlyCount "70"]
[EventDate "2024.03.12"]
[EventCountry "ISL"]
[SourceTitle "playchess.com"]
[Source "ChessBase"]
[SourceQuality "1"]
[TimeControl "40/5400+30:1800+30"]

{[%evp 18,70,30,18,41,42,45,23,34,-16,-9,-20,13,-6,0,-48,-27,-45,-53,-45,-46,-46,-17,-85,-64,-78,-54,-70,0,-58,-9,-79,-67,-102,-102,-176,-168,-175,-179,-184,-193,-188,-165,-374,-284,-620,-596,-830,-754,-29987,-29988,-29988,-29989,-29989,-29984]} 1. d4 {[%emt 0:00:15]} Nf6 {[%emt 0:03:12]} 2. c4 {[%emt 0:00:04]} e6 {[%emt 0:00:21]} 3. Nc3 {[%emt 0:00:05]} Bb4 {[%emt 0:01:27]} 4. e3 {[%emt 0:00:05]} O-O {[%emt 0:00:19]} 5. Bd3 {[%emt 0:00:05]} d5 {[%emt 0:00:35]} 6. Nf3 {[%emt 0:00:07]} dxc4 {[%emt 0:02:08]} 7. Bxc4 {[%emt 0:00:06]} c5 {[%emt 0:00:23]} 8. O-O {[%emt 0:00:13]} Nbd7 {[%emt 0:01:05]} 9. Qe2 {[%emt 0:03:33]} a6 {[%emt 0:13:55]} 10. a4 {[%emt 0:05:07]} Qe7 {[%emt 0:04:07]} 11. Na2 {[%emt 0:06:04]} Ba5 {[%emt 0:11:06][%cal Bb4a5,Ba5c7,Bc7d6][%mdl 32]} 12. dxc5 {[%emt 0:02:04]} (12. e4 $5) 12... Bc7 {[%emt 0:00:06] [#] White has an edge.} 13. c6 {[%emt 0:11:30]} bxc6 $11 {[%emt 0:02:27]} 14. b3 {[%emt 0:02:04]} Nb6 {[%emt 0:02:15]} 15. Nc3 {[%emt 0:05:43]} Bd6 {[%emt 0:02:47]} 16. h3 {[%emt 0:09:40]} (16. Bd3 $11 {might be stronger.}) 16... Nxc4 {[%emt 0:02:09]} 17. bxc4 {[%emt 0:03:31]} e5 {[%emt 0:03:47] Hoping for ...e4.} 18. e4 {[%emt 0:00:20]} a5 {[%emt 0:01:57]} 19. Rd1 {[%emt 0:02:24][%cal Od1d6]} Bb4 {[%emt 0:01:59]} 20. Bb2 {[%emt 0:00:20]} (20. Na2 $11) 20... Nh5 {[%emt 0:02:04]} 21. Qc2 {[%emt 0:01:55]} f6 {[%emt 0:00:55]} 22. Ne2 {[%emt 0:00:40]} Be6 {[%emt 0:02:13]} (22... g6 $15) 23. Rac1 {[%emt 0:02:04]} (23. g4 $11) 23... Qf7 {[%emt 0:00:46]} (23... g5 $15 {is superior.}) 24. Kf1 {[%emt 0:08:23]} (24. g4 $11 {keeps the balance.}) 24... Rad8 {[%emt 0:00:56]} 25. Rxd8 {[%emt 0:01:09]} Rxd8 {[%emt 0:00:07]} 26. g4 {[%emt 0:03:38] [#]} (26. Bc3 $17 {might work better.}) 26... Qd7 $1 $19 {[%emt 0:04:15]} 27. Bc3 {[%emt 0:07:10]} Nf4 {[%emt 0:03:33]} 28. Nxf4 {[%emt 0:02:12]} exf4 {[%emt 0:00:06]} 29. Bxb4 {[%emt 0:00:53]} axb4 {[%emt 0:00:08]} 30. Ke2 $2 {[%emt 0:04:46]} (30. e5) 30... c5 {[%emt 0:04:20][%cal Oh7h5] ...h5! would now be deadly.} 31. Nd2 $2 {[%emt 0:04:11] [#]} (31. a5) 31... h5 $1 {[%emt 0:01:47][%mdl 512]} 32. gxh5 {[%emt 0:04:56]} (32. Nf1 hxg4) 32... Bxh3 {[%emt 0:00:26] ( -> ...Qg4+)} 33. h6 {[%emt 0:00:15]} Qg4+ {[%emt 0:00:42] Black mates.} 34. Nf3 {[%emt 0:01:06]} Bg2 {[%emt 0:00:15]} 35. Qb3 {[%emt 0:00:06]} Bxf3+ {[%emt 0:00:07] Weighted Error Value: White=0.72/Black=0.22 (precise) .  Mistake:       	White=8     	Black=2      Inaccurate:     	White=3     	Black=2      OK:         	White=6     	Black=7      Brilliant:      	---       	Black=1} 0-1

[Event "Reykjavik Open 2024"]
[Site "Reykjavik"]
[Date "2024.03.18"]
[Round "6.44"]
[White "Fantinel, Thibault"]
[Black "Baldursson, Rani"]
[Result "1-0"]
[ECO "B30"]
[WhiteElo "2421"]
[BlackElo "1989"]
[Annotator "TA"]
[PlyCount "45"]
[EventDate "2024.03.12"]
[EventCountry "ISL"]
[SourceTitle "playchess.com"]
[Source "ChessBase"]
[SourceQuality "1"]
[TimeControl "40/5400+30:1800+30"]

{[%evp 13,45,13,180,173,402,237,235,243,342,308,333,335,327,312,308,273,532,402,562,363,367,365,536,545,597,428,512,503,498,507,645,586,583,567]} 1. e4 {[%emt 0:02:44][%cal Be2e4,Be4e5][%mdl 32]} c5 {[%emt 0:00:25]} 2. Nc3 {[%emt 0:00:07]} Nc6 {[%emt 0:00:33]} 3. Bb5 {[%emt 0:00:09]} Nd4 {[%emt 0:02:04]} 4. Nf3 {[%emt 0:00:11][%cal Bg1f3,Bf3g5,Bg5e4][%mdl 32]} Nxb5 {[%emt 0:06:15]} 5. Nxb5 {[%emt 0:00:06]} Nf6 {[%emt 0:00:46]} 6. e5 {[%emt 0:00:57]} Nd5 {[%emt 0:01:01]} 7. Ng5 {[%emt 0:00:10]} e6 $2 {[%emt 0:06:56]} (7... f6 $11 {and Black stays safe.} 8. Qf3 Nc7 9. exf6 exf6 10. Qe4+ Ne6 11. Nxh7 Qe7) 8. Ne4 $18 {[%emt 0:01:19] Excellent horsemanship.} Qh4 {[%emt 0:09:27] Prevents Qh5} (8... h5 9. Ned6+ Bxd6 10. Nxd6+ Kf8) 9. Qf3 {[%emt 0:04:53]} (9. d3 $142) 9... f5 {[%emt 0:09:43] [#]} 10. exf6 $1 {[%emt 0:01:59] White is clearly better.} gxf6 {[%emt 0:00:33]} (10... Nxf6 {might work better.} 11. Nxf6+ Qxf6) 11. c4 {[%emt 0:00:59][%cal Og2g3] aiming for g3!} Nb4 {[%emt 0:05:42]} 12. g3 {[%emt 0:00:37]} (12. Nxf6+ Kd8 13. O-O Be7 $11) 12... Qh6 {[%emt 0:02:20]} 13. d4 {[%emt 0:02:05][%cal Bd2d4,Bd4c5][%mdl 32]} (13. Nxf6+ Kd8 $14) 13... Qg6 {[%emt 0:01:08]} 14. O-O {[%emt 0:00:24]} (14. Nxc5 Nc2+ 15. Kf1 Nxa1 $17) (14. Nxf6+ Ke7 $16) 14... Na6 $2 {[%emt 0:00:46]} (14... Kf7 15. dxc5 a6) 15. dxc5 {[%emt 0:02:24]} h5 {[%emt 0:02:02] Black is weak on the dark squares} 16. h4 {[%emt 0:03:11]} Be7 {[%emt 0:02:41]} 17. Ned6+ {[%emt 0:04:16]} Bxd6 {[%emt 0:02:09]} (17... Kf8 $142 18. Nxc8 (18. Nxb7 Qg4 $18) 18... Rxc8 19. Qxb7 Kg7 20. Qxa6 Bxc5) 18. Nxd6+ {[%emt 0:00:03] White is clearly winning.} Ke7 {[%emt 0:00:33]} 19. Be3 {[%emt 0:00:04]} ({Less strong is} 19. Nxb7 Bxb7 20. Qxb7 Nxc5 $18) 19... Nb4 {[%emt 0:02:22]} 20. Rad1 {[%emt 0:01:31]} Nc6 {[%emt 0:01:25]} 21. Bd4 {[%emt 0:02:28]} Rb8 {[%emt 0:09:52] [#]} 22. Bxf6+ $1 {[%emt 0:01:42][%mdl 512]} Qxf6 {[%emt 0:01:18]} 23. Nxc8+ {[%emt 0:00:12] Black got outplayed after the opening.   Weighted Error Value: White=0.62/Black=0.97.  Mistake:       	White=1     	Black=4      Inaccurate:     	White=1     	Black=1      OK:         	White=3     	Black=6      Best:        	White=1     	---        Strong:       	White=1     	---} 1-0

[Event "Reykjavik Open 2024"]
[Site "Reykjavik"]
[Date "2024.03.18"]
[Round "6.45"]
[White "Prraneeth Vuppala"]
[Black "Kazarian, Anna-Maja"]
[Result "1-0"]
[ECO "C02"]
[WhiteElo "2506"]
[BlackElo "2206"]
[Annotator "TA"]
[PlyCount "89"]
[EventDate "2024.03.12"]
[EventCountry "ISL"]
[SourceTitle "playchess.com"]
[Source "ChessBase"]
[SourceQuality "1"]
[TimeControl "40/5400+30:1800+30"]

{[%evp 12,89,27,5,10,2,27,41,27,31,70,60,62,61,45,0,47,-20,70,43,79,81,139,62,134,141,155,103,87,88,133,123,140,145,146,144,139,148,166,160,168,182,173,172,188,24,35,47,56,12,91,50,162,22,21,29,31,28,51,22,103,104,106,100,125,52,59,55,70,70,259,238,820,820,817,790,7041,5539,5535,5031]} 1. e4 {[%emt 0:00:22]} e6 {[%emt 0:00:22]} 2. d4 {[%emt 0:00:13]} d5 {[%emt 0:00:04]} 3. e5 {[%emt 0:00:44]} c5 {[%emt 0:00:04]} 4. c3 {[%emt 0:00:09]} Qb6 {[%emt 0:00:55]} 5. Nf3 {[%emt 0:00:58]} Bd7 {[%emt 0:00:09]} 6. Be2 {[%emt 0:01:00]} Bb5 {[%emt 0:01:43]} 7. Bxb5+ {[%emt 0:00:42]} Qxb5 {[%emt 0:00:06]} 8. Na3 {[%emt 0:00:24]} Qa6 {[%emt 0:03:20]} 9. dxc5 {[%emt 0:01:56]} Bxc5 {[%emt 0:00:54] White is slightly better.} 10. b4 $1 {[%emt 0:00:28]} Bb6 {[%emt 0:01:49] [#]} 11. c4 $1 {[%emt 0:03:07] Nb5 would now be deadly.} Ne7 {[%emt 0:17:52]} 12. O-O {[%emt 0:16:05]} O-O {[%emt 0:01:49]} 13. c5 {[%emt 0:01:35][%cal Ob4b5] b5! is the strong threat.} Bd8 {[%emt 0:01:08] Black is weak on the dark squares} (13... Bc7 $11 {should be considered.}) 14. Qb3 {[%emt 0:11:13]} (14. Nd4 $1 $14) 14... b5 {[%emt 0:06:09]} (14... Qc6 $11) 15. Nd4 {[%emt 0:05:33]} Nbc6 {[%emt 0:03:16]} 16. Naxb5 {[%emt 0:04:29]} Qb7 {[%emt 0:07:49]} (16... Nxe5 $142 17. Nd6 Qd3) 17. Ba3 {[%emt 0:05:59]} (17. Bb2 $16) 17... Nxe5 {[%emt 0:01:26]} (17... Qb8 $1 $14) 18. Nd6 $36 {[%emt 0:00:08][%mdl 2048] White is really pushing.} Qc7 {[%emt 0:14:52]} 19. b5 {[%emt 0:00:38]} (19. Bb2 $142 {Hoping for N4b5.} Nd7 20. Rac1) 19... Nc8 {[%emt 0:01:08]} 20. Rac1 {[%emt 0:12:15] White has more active pieces.} Nxd6 {[%emt 0:01:09]} 21. cxd6 {[%emt 0:00:09]} Qd7 {[%emt 0:00:13]} 22. Nc6 {[%emt 0:06:03]} Nc4 {[%emt 0:00:27]} 23. Rxc4 $1 {[%emt 0:00:46]} dxc4 {[%emt 0:00:05]} 24. Qxc4 {[%emt 0:00:04]} Bf6 {[%emt 0:01:22] Wards off Ne5} 25. Bb4 {[%emt 0:00:11][%mdl 1024] White has strong compensation.} Rfc8 {[%emt 0:04:11][%cal Oa7a6]} 26. Rc1 $1 {[%emt 0:05:09]} h6 {[%emt 0:06:11]} 27. a4 {[%emt 0:00:09]} a6 {[%emt 0:02:03]} 28. g3 $2 {[%emt 0:07:06]} ({Weaker is} 28. bxa6 Kh8 $11) (28. b6 $1 $18) 28... axb5 $11 {[%emt 0:00:41]} 29. axb5 {[%emt 0:00:06]} Kh7 {[%emt 0:06:02]} 30. Kg2 {[%emt 0:03:09]} Qb7 {[%emt 0:00:40]} (30... Kh8 $11) 31. Qd3+ {[%emt 0:01:03]} g6 {[%emt 0:00:49] [#]} ({Better is} 31... Kg8 $14) 32. d7 {[%emt 0:01:42]} ({White should play} 32. h4 $1 $18) 32... Rc7 $1 {[%emt 0:05:40]} 33. Rd1 {[%emt 0:04:18]} Rxc6 $1 {[%emt 0:01:03]} 34. bxc6 {[%emt 0:00:13]} Qxc6+ {[%emt 0:02:01]} 35. Kg1 {[%emt 0:00:11]} Kg7 {[%emt 0:08:03]} (35... Rb8 $1 $11) 36. h4 $16 {[%emt 0:04:43]} h5 {[%emt 0:01:15]} 37. Bd2 {[%emt 0:01:57]} Qd5 {[%emt 0:01:09]} 38. Qxd5 {[%emt 0:01:51]} (38. Bh6+ $16 Kh7 39. Qxd5 exd5 40. Bf4) 38... exd5 {[%emt 0:00:02][%mdl 4096] Endgame. KRB-KRB} 39. Be3 $1 {[%emt 0:00:13][%cal Og1g2]} d4 {[%emt 0:00:42]} 40. Rxd4 {[%emt 0:00:14][%cal Og1g2]} (40. Bxd4 Bxd4 41. Rxd4 Rd8 $11) 40... Kf8 $2 {[%emt 0:01:01] Loses the game.} ({But not} 40... Bxd4 $2 41. Bxd4+ f6 42. Bb6 $18) (40... Bd8 $14) 41. Rd6 {[%emt 0:12:07]} Be7 {[%emt 0:01:12] [#]} (41... Bd8 42. Bc5 Kg7) 42. Bc5 $1 $18 {[%emt 0:01:49] White is clearly winning.} Rd8 {[%emt 0:08:32]} 43. Bb6 $1 {[%emt 0:00:18]} Bxd6 {[%emt 0:00:39]} 44. Bxd8 {[%emt 0:00:06] Intending Ba5 and mate.} Be7 {[%emt 0:00:02]} 45. Bc7 {[%emt 0:00:12] Weighted Error Value: White=0.28 (precise) /Black=0.36.  Loses game:     	---       	Black=1      Missed win:     	White=1     	---        Mistake:       	White=5     	Black=8      Inaccurate:     	White=5     	Black=3      OK:         	White=9     	Black=4      Best:        	White=2     	Black=2      Strong:       	White=5     	Black=2} 1-0

[Event "Reykjavik Open 2024"]
[Site "Reykjavik"]
[Date "2024.03.19"]
[Round "7.1"]
[White "Maze, Sebastien"]
[Black "Deac, Bogdan-Daniel"]
[Result "1/2-1/2"]
[ECO "B22"]
[WhiteElo "2551"]
[BlackElo "2690"]
[Annotator "TA"]
[PlyCount "95"]
[EventDate "2024.03.12"]
[EventCountry "ISL"]
[SourceTitle "playchess.com"]
[Source "ChessBase"]
[SourceQuality "1"]
[TimeControl "40/5400+30:1800+30"]

{[%evp 18,95,33,39,16,26,47,41,50,41,43,41,33,35,13,18,31,20,35,25,39,28,20,27,29,22,25,3,8,2,17,12,20,0,3,0,48,0,0,0,0,0,0,0,0,0,0,0,0,0,0,0,0,0,0,-6,-6,-10,-10,-25,-10,-10,-10,-10,-10,-11,-8,-8,-8,-8,-8,-11,0,0,0,0,0,0,0,0]} 1. e4 {[%emt 0:00:15]} c5 {[%emt 0:00:05]} 2. Nf3 {[%emt 0:00:09]} e6 {[%emt 0:00:02]} 3. c3 {[%emt 0:00:13]} d5 {[%emt 0:00:38]} 4. exd5 {[%emt 0:00:35]} exd5 {[%emt 0:03:24]} 5. d4 {[%emt 0:00:28]} Nc6 {[%emt 0:01:17]} 6. Be2 {[%emt 0:05:57]} Bd6 {[%emt 0:02:55]} 7. dxc5 {[%emt 0:00:29]} Bxc5 {[%emt 0:00:09]} 8. O-O {[%emt 0:00:37]} Nge7 {[%emt 0:02:22]} 9. Nbd2 {[%emt 0:04:11]} O-O {[%emt 0:03:19]} 10. Nb3 {[%emt 0:00:23]} Bb6 {[%emt 0:06:27]} 11. Re1 {[%emt 0:11:14][%cal Bf1e1,Be1e3,Be3f3][%mdl 32]} Qd6 {[%emt 0:23:07]} 12. Bd3 {[%emt 0:13:01]} h6 {[%emt 0:03:15] White is slightly better.} 13. Be3 {[%emt 0:01:24]} Bxe3 {[%emt 0:00:06]} 14. Rxe3 {[%emt 0:00:05]} Bg4 {[%emt 0:00:07]} 15. Qd2 {[%emt 0:17:12]} Bxf3 {[%emt 0:00:53]} 16. Rxf3 {[%emt 0:00:02]} Rad8 {[%emt 0:03:30]} 17. Rd1 {[%emt 0:01:21]} Ne5 {[%emt 0:01:19]} 18. Rg3 {[%emt 0:02:23]} f5 {[%emt 0:06:01][%cal Bf7f5,Bf5f4][%mdl 32]} 19. Nd4 {[%emt 0:01:05]} f4 {[%emt 0:06:48]} 20. Rh3 {[%emt 0:00:07]} N7c6 {[%emt 0:03:41]} 21. Bb1 {[%emt 0:06:16]} Nxd4 {[%emt 0:12:31]} 22. Qxd4 {[%emt 0:10:59][%cal Oh3h5]} Qe6 $1 {[%emt 0:00:25][%cal Oe6h3]} 23. Qxa7 {[%emt 0:10:14][%cal Oa7c5]} Nc4 {[%emt 0:02:01] [#] Hoping for ...Rde8.} 24. Qd4 {[%emt 0:02:18]} (24. Qxb7 $2 {too greedy.} Rfe8 25. Rf1 Nd2 $19) 24... Nxb2 {[%emt 0:02:55]} 25. Rf1 {[%emt 0:00:04]} Rf6 {[%emt 0:01:40]} 26. Rh5 {[%emt 0:04:23]} Nc4 {[%emt 0:02:29] Repels Re5} (26... Qf7 $11 {should be considered.} 27. Re5 Nc4) 27. Qd3 {[%emt 0:00:50]} (27. Rd1 $14) 27... Kf8 $11 {[%emt 0:05:03]} 28. Qh7 {[%emt 0:04:36]} Nd2 {[%emt 0:02:03]} 29. Qh8+ $1 {[%emt 0:01:46]} Qg8 {[%emt 0:01:01]} 30. Qxg8+ {[%emt 0:00:04]} Kxg8 {[%emt 0:00:01]} 31. Rd1 {[%emt 0:00:09]} Nxb1 {[%emt 0:00:07]} 32. Rxb1 {[%emt 0:00:04][%mdl 4096] Endgame. KRR-KRR} Rc6 {[%emt 0:00:04]} 33. Rh3 {[%emt 0:00:37]} Ra8 {[%emt 0:00:42]} 34. Rd3 {[%emt 0:01:24]} Rxa2 {[%emt 0:00:38]} 35. h4 {[%emt 0:00:07]} b6 {[%emt 0:01:39]} 36. Rxd5 {[%emt 0:01:24]} Rxc3 {[%emt 0:00:05]} 37. Rf5 {[%emt 0:00:59]} Rc4 {[%emt 0:01:28]} 38. Rfb5 {[%emt 0:01:23]} Rcc2 {[%emt 0:01:30]} 39. Rf1 {[%emt 0:00:18] The position is equal.} Rab2 {[%emt 0:01:21]} 40. Rf5 {[%emt 0:00:01]} Rb4 {[%emt 0:01:46]} 41. Rd1 {[%emt 0:31:15]} Rc5 {[%emt 0:31:10]} 42. Rd8+ {[%emt 0:00:16]} Kh7 {[%emt 0:00:10]} 43. Rxc5 {[%emt 0:00:08]} bxc5 {[%emt 0:00:05]} 44. Rc8 {[%emt 0:00:05]} Rc4 {[%emt 0:00:00]} 45. h5 {[%emt 0:00:00]} Rc2 {[%emt 0:00:00]} 46. Rf8 {[%emt 0:00:00]} Rc4 {[%emt 0:00:00]} 47. Rc8 {[%emt 0:00:00]} Rc2 {[%emt 0:00:00]} 48. Rf8 {[%emt 0:00:00] Weighted Error Value: White=0.03 (flawless) /Black=0.05 (flawless) .  Mistake:       	White=1     	Black=1      OK:         	White=21    	Black=12     Best:        	White=3     	Black=2      Strong:       	White=1     	Black=1} 1/2-1/2

[Event "Reykjavik Open 2024"]
[Site "Reykjavik"]
[Date "2024.03.19"]
[Round "7.2"]
[White "Moussard, Jules"]
[Black "Adhiban, B.."]
[Result "1/2-1/2"]
[ECO "A13"]
[WhiteElo "2621"]
[BlackElo "2541"]
[Annotator "TA"]
[PlyCount "57"]
[EventDate "2024.03.12"]
[EventCountry "ISL"]
[SourceTitle "playchess.com"]
[Source "ChessBase"]
[SourceQuality "1"]
[TimeControl "40/5400+30:1800+30"]

{[%evp 9,57,28,31,26,24,30,35,39,45,20,28,30,40,0,0,0,-3,0,0,0,0,0,0,0,0,6,0,0,14,0,0,4,12,16,11,13,10,18,14,25,29,35,18,0,0,0,0,0,0,7]} 1. c4 {[%emt 0:02:19]} e6 {[%emt 0:00:18]} 2. Nc3 {[%emt 0:01:23]} Bb4 {[%emt 0:00:05]} 3. Qc2 {[%emt 0:01:06]} b6 {[%emt 0:00:18]} 4. a3 {[%emt 0:01:58]} Bxc3 {[%emt 0:00:03]} 5. Qxc3 {[%emt 0:00:02]} Qf6 {[%emt 0:00:10]} 6. d4 {[%emt 0:07:08]} Bb7 {[%emt 0:01:20] Wards off e4} 7. e3 {[%emt 0:05:26]} c5 {[%emt 0:03:28]} 8. Ne2 {[%emt 0:01:03] White is slightly better.} cxd4 {[%emt 0:00:47]} 9. exd4 {[%emt 0:01:34]} Nc6 {[%emt 0:20:40]} 10. h4 {[%emt 0:03:31]} Nge7 {[%emt 0:22:24]} 11. Bg5 {[%emt 0:02:30]} (11. b4 $5) 11... Qg6 {[%emt 0:02:09]} 12. Ng3 {[%emt 0:03:34]} h6 {[%emt 0:05:58]} 13. Be3 {[%emt 0:03:02]} d5 {[%emt 0:05:19]} 14. Bd3 {[%emt 0:15:09]} f5 {[%emt 0:00:04]} 15. c5 {[%emt 0:00:59]} O-O {[%emt 0:03:10]} 16. Ne2 {[%emt 0:03:01]} bxc5 {[%emt 0:09:22]} 17. Qxc5 {[%emt 0:00:45]} e5 {[%emt 0:01:11]} 18. O-O {[%emt 0:10:25] aiming for dxe5.} Qf7 {[%emt 0:05:13] [#] Strongly threatening ...f4.} 19. dxe5 {[%emt 0:03:09]} Nxe5 {[%emt 0:00:02]} 20. Qc7 {[%emt 0:04:03] Black is weak on the dark squares} N7g6 {[%emt 0:03:16]} 21. Qxf7+ {[%emt 0:00:13]} Rxf7 {[%emt 0:00:05]} 22. Bc2 {[%emt 0:05:35]} Nxh4 {[%emt 0:00:18] Excellent horsemanship.} 23. Nd4 {[%emt 0:02:26]} f4 {[%emt 0:05:41]} 24. Bd2 {[%emt 0:00:07]} Nc6 {[%emt 0:01:11]} 25. Nxc6 {[%emt 0:02:36]} Bxc6 {[%emt 0:00:03]} 26. Rfe1 {[%emt 0:02:14] The position is equal.} f3 {[%emt 0:01:21]} 27. g3 {[%emt 0:01:15]} Nf5 {[%emt 0:00:07]} 28. Bxf5 {[%emt 0:03:28]} Rxf5 {[%emt 0:00:04]} 29. Rac1 {[%emt 0:00:14] Weighted Error Value: White=0.03 (flawless) /Black=0.02 (flawless) .  Inaccurate:     	White=1     	---        OK:         	White=13    	Black=12} 1/2-1/2

[Event "Reykjavik Open 2024"]
[Site "Reykjavik"]
[Date "2024.03.19"]
[Round "7.3"]
[White "Pultinevicius, Paulius"]
[Black "Seemann, Jakub"]
[Result "1/2-1/2"]
[ECO "A46"]
[WhiteElo "2575"]
[BlackElo "2451"]
[Annotator "TA"]
[PlyCount "91"]
[EventDate "2024.03.12"]
[EventCountry "ISL"]
[SourceTitle "playchess.com"]
[Source "ChessBase"]
[SourceQuality "1"]
[TimeControl "40/5400+30:1800+30"]

{[%evp 9,91,0,10,9,22,0,25,6,0,4,17,25,11,14,29,-13,0,0,8,8,11,0,0,-27,-22,-16,-12,-11,-18,-20,-14,-14,-19,-17,-21,-60,-53,-51,-47,-40,-51,-37,-45,-51,-48,-45,-52,-47,-4,-25,-10,-17,-14,-31,0,-30,0,-20,-23,-19,-8,-8,0,0,0,0,0,0,0,0,0,0,0,0,0,0,0,0,0,0,0,0,0,0]} 1. d4 {[%emt 0:00:03]} Nf6 {[%emt 0:00:37]} 2. Nf3 {[%emt 0:00:06]} d5 {[%emt 0:00:08]} 3. g3 {[%emt 0:00:09]} e6 {[%emt 0:00:22]} 4. Bg2 {[%emt 0:00:10]} b5 {[%emt 0:01:04]} 5. O-O {[%emt 0:05:12]} Be7 {[%emt 0:00:35]} 6. Ne5 {[%emt 0:08:28]} Bb7 {[%emt 0:06:10]} 7. Nd2 {[%emt 0:09:02][%cal Bb1d2,Bd2e4,Be4c3][%mdl 32]} Nbd7 {[%emt 0:07:43]} 8. Nxd7 {[%emt 0:00:55] Weiß hat minimalen Vorteil.} Nxd7 {[%emt 0:01:03]} 9. e4 {[%emt 0:09:09]} dxe4 {[%emt 0:04:04]} 10. Nxe4 {[%emt 0:00:30]} Bd5 {[%emt 0:06:48]} 11. Qg4 {[%emt 0:02:50]} g6 {[%emt 0:08:29] [#] Zielt auf ...f5 ab.} 12. Qh3 {[%emt 0:00:16]} Nf6 {[%emt 0:14:41]} 13. Nc3 {[%emt 0:02:01]} Bxg2 {[%emt 0:03:26]} 14. Qxg2 {[%emt 0:00:26]} Rb8 {[%emt 0:04:54]} 15. Bh6 {[%emt 0:28:51]} b4 {[%emt 0:03:39]} 16. Bg7 {[%emt 0:09:13]} bxc3 {[%emt 0:04:59]} 17. Bxh8 {[%emt 0:00:03]} cxb2 {[%emt 0:01:21]} 18. Rab1 {[%emt 0:00:03]} Qd5 {[%emt 0:04:27]} 19. Bxf6 $1 {[%emt 0:00:45] Qxd5 ist eine echte Drohung.} Qxg2+ {[%emt 0:04:10]} 20. Kxg2 {[%emt 0:00:04]} Bxf6 $11 {[%emt 0:00:06][%mdl 4096] Endspiel. KRR-KRB} 21. Rfd1 {[%emt 0:12:41] [#]} c5 $1 {[%emt 0:00:49]} 22. dxc5 {[%emt 0:00:05] Schwarz muss nun Rd3 beachten.} (22. Rd3 Bxd4) 22... Rc8 {[%emt 0:03:28]} 23. Rd2 {[%emt 0:00:22][%cal Oc2c3]} Bc3 $1 {[%emt 0:06:54]} (23... Rxc5 $2 {geht unter.} 24. c3 $18) 24. Rd3 {[%emt 0:00:28]} Rxc5 {[%emt 0:00:05]} 25. Rxc3 {[%emt 0:00:20]} Rxc3 {[%emt 0:00:05]} 26. Rxb2 $15 {[%emt 0:00:04] KR-KR} a5 {[%emt 0:02:01]} 27. Kf1 {[%emt 0:01:48]} Ke7 {[%emt 0:06:28]} 28. Ke2 {[%emt 0:00:41]} Kd6 {[%emt 0:01:58]} 29. f4 {[%emt 0:03:01]} h5 {[%emt 0:01:26][%cal Oh5h4]} 30. Kd2 $1 {[%emt 0:00:24]} Rf3 {[%emt 0:00:09]} 31. Ke2 {[%emt 0:00:05] Verhindert Rf2+.} Rc3 {[%emt 0:00:11][%cal Oh5h4]} 32. Kd2 {[%emt 0:00:05]} Rf3 {[%emt 0:00:03]} 33. Ke2 {[%emt 0:00:05] Pariert Rf2+.} Ra3 {[%emt 0:00:35][%cal Oh5h4]} 34. Kd2 {[%emt 0:00:05]} Kd5 {[%emt 0:01:03][%cal Oh5h4] Die Stellung ist ausgeglichen.} 35. Rb7 {[%emt 0:02:41]} h4 {[%emt 0:00:16]} 36. Rxf7 {[%emt 0:01:00]} hxg3 {[%emt 0:00:04]} 37. hxg3 {[%emt 0:00:10]} Rxg3 {[%emt 0:00:10]} 38. Ra7 {[%emt 0:00:27]} Ra3 {[%emt 0:03:57]} 39. Rg7 {[%emt 0:00:12]} Rg3 {[%emt 0:00:23]} 40. Ra7 {[%emt 0:00:04]} Ke4 {[%emt 0:00:28]} 41. Rxa5 {[%emt 0:30:04]} Kxf4 {[%emt 0:30:05]} 42. Ra4+ {[%emt 0:00:13]} Ke5 {[%emt 0:00:43]} 43. Ra8 {[%emt 0:00:22]} g5 {[%emt 0:00:00]} 44. a4 {[%emt 0:00:00][%cal Ba2a4,Ba4a5,Ba5a6][%mdl 32]} g4 {[%emt 0:00:00]} 45. a5 {[%emt 0:00:00]} Ra3 {[%emt 0:00:00]} 46. a6 {[%emt 0:00:00] Gewichteter Fehlerwert: Weiß=0.06 (makellos) /Schwarz=0.06 (makellos) .  Ungenau:       	Weiß=3     	Schwarz=1     OK:         	Weiß=21    	Schwarz=17    Bester:       	Weiß=1     	---        Stark:        	Weiß=2     	Schwarz=1     Brilliant:      	---       	Schwarz=1} 1/2-1/2